[Event "Grand Chess Tour | Sinquefield Cup 2023"]
[Site "St Louis USA"]
[Date "2023.11.22"]
[Round "2"]
[White "Nepomniachtchi, Ian"]
[Black "Dominguez Perez, Leinier"]
[Result "1/2-1/2"]
[WhiteElo "2771"]
[BlackElo "2745"]
[ECO "A34"]
[EventDate "2023.??.??"]
[Annotator "rafael"]
[PlyCount "174"]
[Beauty "3986824378892"]
[EventCountry "USA"]
[TimeControl "40/5400+30:1800+30"]

{[%evp 0,174,19,-18,16,13,13,14,14,18,23,23,23,31,31,17,9,-12,11,3,-13,-4,-4,-10,12,12,12,16,31,15,11,-33,-33,-25,-22,-33,-33,-33,-33,-32,-34,-34,-22,-35,-28,-23,-15,-48,-12,-42,-48,-66,-51,-88,-90,-190,10,2,14,18,29,23,73,73,82,64,67,72,72,72,68,68,64,67,67,64,78,64,87,74,90,84,105,94,116,135,136,135,142,139,135,135,142,135,136,136,141,136,136,131,136,136,136,128,133,136,153,140,155,146,158,147,156,150,143,136,158,175,175,182,163,163,163,158,158,165,163,154,163,163,161,152,151,163,140,180,210,200,204,118,144,147,144,64,109,74,65,29,35,20,20,17,40,35,39,0,0,0,0,0,0,0,0,0,0,0,0,0,0,0,0,0,0,0,0,0,0]} 
1.c4 c5 2.Nf3 Nf6 3.Nc3 Nc6 4.g3 d5 5.cxd5 Nxd5 6.Bg2 g6 7.Ne4 $5 {[%c_effect e4;square;e4;type;Interesting;persistent;true] An interesting idea, played in a few games, but almost all at the highest level. Dominguez already knew it from a blitz game played in 2016.} 7...c4 ( 7...Qb6 8.O-O Bg7 9.d3 {was played in Ding-Dominguez, China Elite Mind Blitz, Huaian 2016. White's idea could be to exploit the not very comfortable queen position on b6 with the Nd2-c4 maneuver or to attack the c5-pawn with Qc2.} ( 9.Qc2 $5 {[%c_effect c2;square;c2;type;Interesting;persistent;true]} 9...Bf5 10.d3 Bxe4 11.dxe4 Ndb4 12.Qb1 {with an interesting and unbalanced position.} ) ) ( 7...b6 $6 {[%c_effect b6;square;b6;type;Inaccuracy;persistent;true] Here White's idea is made clear after} 8.d4 $1 {[%c_effect d4;square;d4;type;GreatFind;persistent;true]} ) ( 7...e5 {is possible, but after} 8.d3 f5 9.Nc3 {Black has to suffer the consequences of excessive pawn advances.} ) 8.Qc2 b5 ( 8...f5 {is also possible. A blitz game continued:} 9.Nc3 Bg7 10.Nxd5 Qxd5 11.O-O O-O 12.d3 cxd3 13.exd3 {with chances for both sides in Svane-Vidit, Titled Tuesday Chess.com 2020.} ) 9.b3 {White tries to break up the pawn structure, but Black has resources of his own.} 9...Bg7 10.Bb2 Ndb4 11.Qc1 Bxb2 12.Qxb2 O-O 13.O-O {A new move. White quickly went downhill in the only game played before, which went} ( 13.a3 Bf5 $1 {[%c_effect f5;square;f5;type;GreatFind;persistent;true]} 14.Nh4 $2 {[%c_effect h4;square;h4;type;Mistake;persistent;true]} 14...Qd4 $1 {[%c_effect d4;square;d4;type;GreatFind;persistent;true] with a winning position for Black: Firouzja-Erigaisi, Airthings Masters Rapid 2023.} ) 13...Rb8 14.a3 Bf5 $1 {[%c_effect f5;square;f5;type;GreatFind;persistent;true]} 15.Nh4 Bxe4 16.Bxe4 Nd5 17.bxc4 {This exchange helps Black, as the rook on b8 becomes active. It is more prudent to start with} ( 17.Nf3 {since after} 17...Na5 {White can play} 18.b4 ) 17...bxc4 18.Qc2 Na5 {Nepomniachtchi's opening experiment was clearly unsuccessful.} 19.Rab1 Nf6 20.Bg2 Qd6 ( 20...Rb3 $1 {[%c_effect b3;square;b3;type;GreatFind;persistent;true] is unpleasant to face. If White captures the rook, the b3-pawn becomes dangerous. Otherwise Black plays ...Qb6 and takes control of the b-file.} 21.Nf3 ( 21.Rxb3 cxb3 ) 21...Qb6 ) 21.Nf3 Rxb1 ( 21...Rb3 {is again interesting.} ) 22.Rxb1 Qxa3 23.Nd4 ( 23.Ne5 {It seems that White has enough compensation to make a draw after this move, for example:} 23...Rc8 24.Qc3 Qxc3 25.dxc3 ) 23...Rc8 24.h3 {A somewhat mysterious move, but it gives air to the king and may be speculating on g3-g4 in future.} ( 24.Qc3 {is possible again:} 24...Qxc3 25.dxc3 {with enough play for a draw.} ) 24...e5 25.Nb5 Qc5 26.Qa4 Nb3 27.Qa6 $1 {[%c_effect a6;square;a6;type;GreatFind;persistent;true]} ( 27.Nxa7 {is natural, but doesn't solve all the problems:} 27...Rc7 ( 27...Nxd2 {is bad due to} 28.Rb5 $1 {[%c_effect b5;square;b5;type;GreatFind;persistent;true]} ) ( 27...Rd8 {is also possible.} ) 28.Nb5 Nxd2 29.Nxc7 Nxb1 {with winning chances for Black.} ) 27...Rb8 $6 {[%c_effect b8;square;b8;type;Inaccuracy;persistent;true] This move allows White to capture the c-pawn.} ( 27...Kg7 {is better. White still has to defend a long endgame after} 28.Nd6 Rd8 29.Nxc4 ( 29.Nb7 $2 {[%c_effect b7;square;b7;type;Mistake;persistent;true] loses to} 29...Qc8 $1 {[%c_effect c8;square;c8;type;GreatFind;persistent;true]} ) 29...Nxd2 30.Nxd2 Rxd2 31.Ra1 ) 28.Na3 $1 {[%c_effect a3;square;a3;type;GreatFind;persistent;true]} 28...Kg7 29.Nxc4 Rb4 30.Ne3 ( 30.d3 {leads to a draw.} 30...e4 ( 30...Nd4 31.Rxb4 Qxb4 ) ) 30...e4 {Black starts to get into trouble after this move, which opens the a1-h8 diagonal.} ( 30...Nxd2 $2 {[%c_effect d2;square;d2;type;Mistake;persistent;true] loses a piece after} 31.Rxb4 Qxb4 32.Qxf6+ $1 {[%c_effect f6;square;f6;type;GreatFind;persistent;true]} 32...Kxf6 33.Nd5+ ) ( 30...Rb5 {is the best way to make a draw.} ) 31.Qa3 $1 {[%c_effect a3;square;a3;type;GreatFind;persistent;true]} 31...Qb6 32.d3 ( 32.g4 $5 {[%c_effect g4;square;g4;type;Interesting;persistent;true] creates some serious practical chances. Black has to play very accurately to survive.} 32...h6 $1 {[%c_effect h6;square;h6;type;GreatFind;persistent;true]} 33.h4 Rb5 $1 {[%c_effect b5;square;b5;type;GreatFind;persistent;true]} 34.g5 hxg5 35.hxg5 Ne8 36.Nc4 Qb8 $1 {[%c_effect b8;square;b8;type;GreatFind;persistent;true]} 37.Qe7 {Even after playing all those forced moves, Black still has problems to solve.} ) 32...exd3 33.exd3 a5 $1 {[%c_effect a5;square;a5;type;GreatFind;persistent;true] It's necessary to protect the rook on b4, even though this loses a pawn.} 34.Nc4 Qb5 35.Nxa5 $1 {[%c_effect a5;square;a5;type;GreatFind;persistent;true]} 35...Ra4 36.Qxb3 Qxa5 {Who would have imagined that after suffering so much in the opening and middlegame, White would achieve an endgame with an extra pawn $2 It should be drawn without any major problems, it's true, but I have the impression that this residual memory affected the remaining play, since they both made more mistakes than expected.} 37.Qb5 Qa7 ( 37...Qxb5 38.Rxb5 Rd4 39.Bf1 h5 $1 {[%c_effect h5;square;h5;type;GreatFind;persistent;true] The computer is very confident that Black will make a draw here, although I'd still be worried.} ) 38.Qe5 Ra5 39.Qe3 Qc7 40.d4 {White manages to advance the pawn. The evaluation of the game won't change for a long time. Let's fast forward to a critical moment.} 40...Ra7 41.Rc1 Qd8 42.d5 Rd7 43.Qd4 Kg8 44.Rc5 Ne8 $1 {[%c_effect e8;square;e8;type;GreatFind;persistent;true] The knight is known as an excellent blockader.} 45.Rc6 Qe7 46.Bf3 Nd6 47.Kg2 Rd8 48.h4 h5 49.Ra6 Nf5 50.Qa1 Rd6 51.Ra8+ Rd8 52.Ra2 Qd6 53.Be4 Re8 54.Ra8 Ng7 55.Ra6 Qe7 56.Bd3 Rd8 57.Ra7 {Here the drama begins again.} 57...Rd7 $2 {[%c_effect d7;square;d7;type;Mistake;persistent;true]} ( 57...Qd6 {is necessary, with excellent drawing chances.} ) 58.Rxd7 Qxd7 59.Qa8+ {The important detail is that the white queen can use the c6-square as support.} 59...Qe8 ( 59...Kh7 60.Qc6 $1 {[%c_effect c6;square;c6;type;GreatFind;persistent;true] followed by the advance of the pawn.} ) ( 59...Ne8 60.Bc2 $1 {[%c_effect c2;square;c2;type;GreatFind;persistent;true] This nice move, with the idea of Ba4, wins.} ) 60.Qc6 $2 {[%c_effect c6;square;c6;type;Mistake;persistent;true]} ( 60.Qxe8+ {The bishop-versus-knight endgame is winning. This surprised me at first, as I thought a defense would be possible with the knight blocking the pawn on d6 and the h-pawn's queening square a different color from the bishop. But the computer relentlessly shows victory.} 60...Nxe8 61.Kf3 Nd6 62.Kf4 Kf8 63.f3 $1 {[%c_effect f3;square;f3;type;GreatFind;persistent;true]} 63...Nb7 64.g4 hxg4 65.fxg4 Nd6 66.Ke5 Ke7 67.Kd4 {Kc5 will follow, and Black is unable to sustain the defense.} ) 60...Kf8 61.Qc5+ Kg8 62.d6 Qa8+ 63.Kg1 Qa1+ 64.Kg2 ( 64.Kh2 $1 {[%c_effect h2;square;h2;type;GreatFind;persistent;true] is better, retaining some winning chances after} 64...Ne6 65.Qd5 ) 64...Qa8+ 65.Kh2 Ne6 66.Qc4 Qa7 $2 {[%c_effect a7;square;a7;type;Mistake;persistent;true]} ( 66...Qf3 $1 {[%c_effect f3;square;f3;type;GreatFind;persistent;true] Black has a pretty draw after this move.} 67.Kg1 Qd1+ 68.Kg2 Nf4+ $3 {[%c_effect f4;square;f4;type;Brilliant;persistent;true] This is the point.} 69.Qxf4 ( 69.gxf4 Qg4+ {with perpetual check.} ) 69...Qxd3 {The queen endgame is drawn since White's king cannot easily escape from the checks.} ) 67.Kg2 Qd4 68.Qxd4 Nxd4 69.d7 $2 {[%c_effect d7;square;d7;type;Mistake;persistent;true] After this mistake, Black is able to escape.} ( 69.f4 $1 {[%c_effect f4;square;f4;type;GreatFind;persistent;true] is the right way, preparing Kf2-e3. Play may continue:} 69...Kf8 70.Kf2 Ke8 71.Ke3 Ne6 72.Bb5+ $1 {[%c_effect b5;square;b5;type;GreatFind;persistent;true]} 72...Kf8 73.Ke4 {with a winning position for White.} ) 69...Nc6 70.Bb5 Nd8 71.Kf3 Kf8 72.Ke4 Ke7 73.f4 Ne6 {The knight performs miracles and saves Black.} 74.Bc6 Kd6 75.Ba4 Nc5+ 76.Kd4 Nxd7 77.Bxd7 Kxd7 78.f5 Ke7 79.Ke5 f6+ 80.Kf4 gxf5 81.Kxf5 Kf7 82.Kf4 Ke6 83.g4 hxg4 84.Kxg4 Kf7 85.Kf5 Kg7 86.h5 Kh6 87.Kxf6 Kxh5 1/2-1/2

[Event "Grand Chess Tour | Sinquefield Cup 2023"]
[Site "St Louis USA"]
[Date "2023.11.23"]
[Round "3"]
[White "Rapport, Richard"]
[Black "Firouzja, Alireza"]
[Result "1/2-1/2"]
[WhiteElo "2748"]
[BlackElo "2777"]
[ECO "C42"]
[EventDate "2023.??.??"]
[Annotator "rafael"]
[PlyCount "70"]
[Beauty "6393864165907"]
[EventCountry "USA"]
[TimeControl "40/5400+30:1800+30"]

1.e4 e5 2.Nf3 Nf6 3.Nxe5 d6 4.Nf3 Nxe4 5.Nc3 {This simple move is one of my favorite lines against the Petroff. White's play isn't very difficult and although he doesn't have an objective advantage, I can say that nothing gives him an advantage against this solid defense anywway.} 5...Nxc3 6.dxc3 Be7 7.Bf4 O-O 8.Qd2 Nd7 9.O-O-O Nb6 $6 {[%c_effect b6;square;b6;type;Inaccuracy;persistent;true] A rare move, never played by a GM before. The b6-square seems a little strange for the knight, as it doesn't have a very large range of action.} ( 9...Nc5 {is played in the overwhelming majority of games.} ) 10.Bd3 ( 10.Kb1 {The classical prophylactic move is also possible, following the principle \"whenever in doubt, play Kb1\".} ) 10...d5 ( 10...Be6 {has been played before, but White has the initiative after} 11.h4 ) 11.h4 c5 {Big complications start from now on. Instinctively we can see that the position is very promising for White, with several attacking possibilities against the black king. The central theme of this game is \"Candidate Moves\", the term created by GM and renowned author Alexander Kotov and which is so debated to this day. Both sides will have plenty of options on almost every move during the middlegame.} 12.Ng5 {A tempting attacking move, but possibly not the best. I'll briefly mention other ideas:} ( 12.Kb1 {is always there for us.} ) ( 12.Bg5 $5 {[%c_effect g5;square;g5;type;Interesting;persistent;true] using the g5-square for another piece.} 12...f6 13.Bf4 {It can be argued that the move f7-f6 undermines Black's position.} ) ( 12.Be5 $5 {[%c_effect e5;square;e5;type;Interesting;persistent;true]} 12...f6 13.Bg3 {is a slightly improved version for White of the same idea.} ) ( 12.h5 {is the machine's favorite move and a difficult one for a human being, since we want to use the pawn on h4 as support for a piece on g5. But here it's not a question of arguing with the computer, but of learning from it.} 12...Bf6 ( 12...Bg4 13.Rde1 {with the idea of Ne5 and, if Black captures on f3, then the pair of bishops and the g-file give White an advantage.} ) 13.h6 g6 14.Be5 {followed by Qf4, with strong pressure on the kingside.} ) 12...h6 13.c4 {A creative move by Rapport and one that will work well in the game, although it's not objectively enough for an advantage. As usual, there are many options.} ( 13.Nh7 $2 {[%c_effect h7;square;h7;type;Mistake;persistent;true] is clearly wrong.} 13...c4 $1 {[%c_effect c4;square;c4;type;GreatFind;persistent;true]} 14.Nxf8 cxd3 {with a winning advantage for Black.} ) ( 13.Nf3 {is too slow:} 13...c4 14.Be2 Bf5 {with a good position.} ) ( 13.Rde1 $5 {[%c_effect e1;square;e1;type;Interesting;persistent;true]} ) ( 13.g4 $5 {[%c_effect g4;square;g4;type;Interesting;persistent;true]} ) ( 13.Qe3 $5 {[%c_effect e3;square;e3;type;Interesting;persistent;true] All these last three moves lead to a complex middlegame with chances for both sides. They show that White doesn't need to bother withdrawing the knight from g5, since its capture usually ends in mate on the h-file.} ) 13...f5 $2 {[%c_effect f5;square;f5;type;Mistake;persistent;true]} ( 13...hxg5 $2 {[%c_effect g5;square;g5;type;Mistake;persistent;true]} 14.hxg5 {Black won't survive the attack on the h-file.} ) ( 13...dxc4 $6 {[%c_effect c4;square;c4;type;Inaccuracy;persistent;true]} 14.Bh7+ Kh8 15.Qe3 $1 {[%c_effect e3;square;e3;type;GreatFind;persistent;true] This is stronger than} ( 15.Qxd8 Bxd8 16.Rxd8 Rxd8 17.Nxf7+ Kxh7 18.Nxd8 Nd5 {when Black holds.} ) 15...Qe8 16.Be4 {with a strong attack.} ) ( 13...Nxc4 $1 {[%c_effect c4;square;c4;type;GreatFind;persistent;true] This is the right move for Black.} 14.Bxc4 ( 14.Qe2 {is not dangerous since White doesn't have threats.} 14...b5 {with the advantage.} ( 14...Nxb2 {Even this move is possible:} 15.Kxb2 Bf6+ {with counterplay.} ) ) 14...dxc4 15.Qe3 Qe8 16.Rde1 {Now the game peters out to a draw after} 16...Bxg5 17.hxg5 Qxe3+ 18.Rxe3 hxg5 19.Bd6 Rd8 20.Bc7 Rf8 21.Bd6 {with a move repetition.} ) 14.Qe3 {This leads to a big advantage, but 14.cxd5 is even better.} ( 14.cxd5 $1 {[%c_effect d5;square;d5;type;GreatFind;persistent;true]} 14...Qxd5 ( 14...hxg5 15.hxg5 {leads to the typical attack on the h-file.} ) ( 14...c4 15.Be2 c3 16.Qe3 $1 {[%c_effect e3;square;e3;type;GreatFind;persistent;true]} 16...cxb2+ 17.Kb1 {with a much better position for White. His king is safe behind Black's pawn.} ) 15.Qe2 Bf6 16.b3 $1 {[%c_effect b3;square;b3;type;GreatFind;persistent;true] Preparing Bc4. White is winning.} ) 14...Bf6 $1 {[%c_effect f6;square;f6;type;GreatFind;persistent;true] Firouzja fights with all his creativity in an attempt to save the game.} ( 14...hxg5 15.hxg5 {is winning.} ) ( 14...d4 {doesn't help:} 15.Qg3 ) 15.Ne6 ( 15.cxd5 {no longer works so well:} 15...Qxd5 16.b3 c4 $1 {[%c_effect c4;square;c4;type;GreatFind;persistent;true] The queen is not well-placed on e3 and if} 17.Bxc4 Nxc4 {Black is fine.} ) 15...Bxb2+ $1 {[%c_effect b2;square;b2;type;GreatFind;persistent;true] This is the idea.} 16.Kb1 $1 {[%c_effect b1;square;b1;type;GreatFind;persistent;true]} ( 16.Kxb2 $2 {[%c_effect b2;square;b2;type;Mistake;persistent;true]} 16...Qf6+ {regains the knight.} ) 16...Bd4 $1 {[%c_effect d4;square;d4;type;GreatFind;persistent;true] The best chance.} ( 16...Qf6 {doesn't work:} 17.Nxf8 Na4 {Other moves are insufficient as well:} ( 17...Bd4 18.Qe8 Qxf8 19.Qxf8+ Kxf8 20.cxd5 {with a winning position.} ) ( 17...dxc4 18.Qe8 Qxf8 19.Qxf8+ Kxf8 20.Kxb2 cxd3 21.Rxd3 {White remains an exchange up.} ) 18.Qe8 $1 {[%c_effect e8;square;e8;type;GreatFind;persistent;true]} 18...Nc3+ 19.Kxb2 Nxd1+ 20.Kc1 {Black's counterplay is over.} ) 17.Nxd4 Re8 ( 17...cxd4 {is also much better for White after} 18.Qxd4 Be6 19.c5 Nc4 20.Rhe1 ) 18.Bc7 $2 {[%c_effect c7;square;c7;type;Mistake;persistent;true] This move leads to an endgame and wastes all of White's advantage.} ( 18.Qg3 cxd4 19.Be5 $1 {[%c_effect e5;square;e5;type;GreatFind;persistent;true]} ( 19.Bxh6 $2 {[%c_effect h6;square;h6;type;Mistake;persistent;true]} 19...Qf6 20.Bg5 Qf8 21.c5 Qxc5 22.Bf6 Qb4+ 23.Kc1 Qa3+ 24.Kb1 Qb4+ {with perpetual check.} ) 19...Qe7 ( 19...Rxe5 20.Qxe5 dxc4 21.Be2 {The pawn on d4 cannot be defended and White wins.} ) 20.Bxd4 Be6 ( 20...dxc4 21.Rhe1 $1 {[%c_effect e1;square;e1;type;GreatFind;persistent;true]} 21...Qb4+ 22.Ka1 {with a decisive attack.} ) 21.Rhe1 Qf7 22.c5 {White's position is far superior and effectively winning in the hands of a skilled attacking player like Rapport.} ) ( 18.Be5 cxd4 19.Qg3 $1 {[%c_effect g3;square;g3;type;GreatFind;persistent;true] transposes.} ) 18...cxd4 ( 18...Qd7 $2 {[%c_effect d7;square;d7;type;Mistake;persistent;true] is playing with fire:} 19.Bxf5 Qa4 20.Be6+ $1 {[%c_effect e6;square;e6;type;GreatFind;persistent;true]} 20...Bxe6 21.Nxe6 Nxc4 22.Qb3 $1 {[%c_effect b3;square;b3;type;GreatFind;persistent;true] White wins material.} ) 19.Bxd8 dxe3 20.Bxb6 axb6 21.cxd5 exf2 22.Rhf1 Ra4 {Activating the rook. Black has no problem achieving a draw.} 23.Rxf2 ( 23.g3 $2 {[%c_effect g3;square;g3;type;Mistake;persistent;true]} 23...f4 {Now Black is even better.} ) ( 23.c4 b5 $1 {[%c_effect b5;square;b5;type;GreatFind;persistent;true] with counterplay.} ) 23...Rxh4 24.Bxf5 Rb4+ 25.Ka1 ( 25.Kc1 Bxf5 26.Rxf5 Ra4 {also leads to a draw.} ) 25...Bxf5 26.Rxf5 Rd8 27.d6 Rd7 28.a3 Rc4 29.Kb2 Rc6 30.Rfd5 Kf7 31.R5d3 Ke6 32.Re1+ Kf7 33.Red1 Ke6 34.Re1+ Kf7 35.Red1 Ke6 1/2-1/2